bitfinex/quotes_ETHUSD_20250802
["timestamp","ask_amount","ask_price","bid_price","bid_amount"]
[1754131726671,9.8162,3489.8,3489.7,0.002]
[1754131726875,40.2848,3489.8,3489.7,0.002]
[1754131727080,39.8162,3489.8,3489.7,0.002]
[1754131727858,34.5422,3489.8,3489.7,0.4995]
[1754131728054,30.1432,3489.8,3489.7,0.4995]
[1754131728268,34.5422,3489.8,3489.7,0.002]
[1754131728578,34.5422,3489.8,3489.7,0.4995]
[1754131728768,37.5422,3489.8,3489.7,0.4995]
[1754131729338,37.5422,3489.8,3489.7,0.002]
[1754131729541,10.778,3489.8,3489.7,0.002]
[1754131729775,10.2848,3489.8,3489.7,0.002]
[1754131729967,40.778,3489.8,3489.7,0.002]
[1754131739994,10.778,3489.8,3489.7,0.002]
[1754131740173,40.778,3489.8,3489.7,0.002]
[1754131741071,40.92755005,3489.8,3489.7,0.002]
[1754131742277,46.45885361,3489.8,3489.7,0.002]
[1754131743467,40.92755005,3489.8,3489.7,0.002]
[1754131743804,41.077457,3489.8,3489.7,0.002]
[1754131744113,11.077457,3489.8,3489.7,0.002]
[1754131744314,41.077457,3489.8,3489.7,0.002]
[1754131745509,41.192365,3489.8,3489.7,0.002]
[1754131746102,11.192365,3489.8,3489.7,0.002]
[1754131746286,41.192365,3489.8,3489.7,0.002]
[1754131746625,40.230565,3489.8,3489.7,0.002]
[1754131746770,40.229565,3489.8,3489.7,0.002]
[1754131747102,40.229565,3489.8,3489.7,0.4862]
[1754131748420,37.229565,3489.8,3489.7,0.002]
[1754131748632,36.96510695,3489.8,3489.7,0.4862]
[1754131748777,39.96510695,3489.8,3489.7,0.4862]
[1754131748973,31.8672,3489.8,3489.7,0.4862]
[1754131749174,0.1432,3489.8,3489.7,0.9359]
[1754131749374,0.4862,3490.1,3489.7,1.58302036]
[1754131749570,0.1432,3489.9,3489.8,0.9339]
[1754131749815,0.1432,3489.9,3489.7,0.64912036]
[1754131750014,4.398,3489.8,3489.7,0.64912036]
[1754131750513,4.398,3489.8,3489.7,1.58302036]
[1754131753536,4.398,3489.9,3489.7,1.58302036]
[1754131753738,4.398,3489.9,3489.8,7.19135595]
[1754131754449,0.001,3490.4,3489.8,7.19135595]
[1754131754605,4.398,3490.3,3489.8,0.86935239]
[1754131754926,4.398,3490.3,3490.2,5.53130356]
[1754131755130,4.398,3490.3,3490.2,6.46520356]
[1754131755327,0.001,3490.4,3490.2,6.46520356]
[1754131755511,0.001,3490.4,3490.3,0.9339]
[1754131758245,0.001,3490.4,3490.3,0.96255083]
[1754131758447,0.001,3490.4,3490.3,1.62625627]
[1754131758682,0.936,3491.9,3490.3,1.62625627]
[1754131758683,0.4639,3492.5,3490.3,4.62625627]
[1754131758864,4.396,3492.2,3490.9,3.0]
[1754131759068,4.396,3492.2,3491.2,5.53130356]
[1754131759386,4.396,3492.2,3491.2,5.67450356]
[1754131759680,4.396,3492.2,3491.2,7.56924392]
[1754131760877,4.396,3492.2,3491.2,10.0823927]
[1754131762295,4.8612,3492.2,3491.2,10.0823927]
[1754131762662,4.8612,3492.2,3491.2,9.6326927]
[1754131762863,0.4652,3492.0,3491.2,9.6326927]
[1754131763098,0.4652,3492.0,3491.2,10.0671927]
[1754131763512,0.4805,3492.1,3491.2,10.0671927]
[1754131764293,0.4652,3492.0,3491.2,10.0671927]
[1754131764900,4.396,3492.2,3491.2,10.0671927]
[1754131765499,0.4652,3492.1,3491.2,10.0671927]
[1754131767190,0.9457,3492.1,3491.2,10.0671927]
[1754131767574,4.8592,3492.5,3491.2,10.0671927]
[1754131767774,4.8592,3492.5,3491.2,14.4611927]
[1754131767981,30.0,3492.4,3491.2,14.4611927]
[1754131768302,30.0,3492.4,3491.8,8.04445234]
[1754131768702,30.0,3492.4,3491.9,0.4804]
[1754131769266,30.0,3492.4,3492.0,0.4804]
[1754131769462,4.394,3492.5,3492.1,0.4804]
[1754131769666,4.394,3492.5,3491.8,8.04445234]
[1754131769871,4.394,3492.5,3492.2,0.4804]
[1754131770108,0.9467,3492.7,3492.4,8.04445234]
[1754131770109,0.001,3492.7,3492.4,8.04445234]
[1754131770309,0.001,3492.7,3492.4,8.18765234]
[1754131770514,0.001,3492.7,3492.5,0.4804]
[1754131771288,0.001,3492.7,3492.6,0.4804]
[1754131771487,0.001,3492.7,3492.6,1.34720523]
[1754131773112,0.001,3492.7,3492.6,1.37583719]
[1754131773312,0.001,3492.7,3492.6,1.34720523]
[1754131773609,0.001,3492.7,3492.6,1.49040523]
[1754131775883,0.001,3492.7,3492.6,1.01000523]
[1754131776727,0.001,3492.7,3492.6,1.49040523]
[1754131779288,0.001,3492.7,3492.6,1.92490523]
[1754131780119,0.001,3492.7,3492.6,1.49040523]
[1754131780823,0.001,3492.7,3492.6,7.00766189]
[1754131781388,0.001,3492.7,3492.6,6.52726189]
[1754131781900,0.001,3492.7,3492.6,7.00766189]
[1754131784945,0.001,3492.7,3492.6,10.91826189]
[1754131785153,0.4662,3492.7,3492.6,6.52726189]
[1754131785523,0.9467,3492.7,3492.6,6.52726189]
[1754131786856,0.4662,3492.7,3492.6,0.1432]
[1754131787150,0.9467,3492.7,3492.4,4.39]
[1754131787348,0.001,3492.7,3492.6,5.51725666]
[1754131787952,0.9467,3492.7,3492.6,5.51725666]
[1754131788120,0.9467,3492.7,3492.3,9.90725666]
[1754131788315,0.9467,3492.7,3492.2,0.1432]
[1754131788316,0.9457,3492.6,3492.2,0.1432]
[1754131788522,0.9457,3492.6,3491.7,5.51725666]
[1754131788720,2.274,3492.3,3491.3,0.002]
[1754131788929,5.274,3492.1,3491.3,0.002]
[1754131789118,5.274,3491.7,3491.3,0.002]
[1754131789416,4.724,3491.5,3491.3,0.002]
[1754131789616,1.724,3491.5,3491.3,0.002]
[1754131789837,35.6697,3491.4,3491.3,0.002]
[1754131790234,36.2197,3491.4,3491.3,0.002]
[1754131790614,6.2197,3491.4,3491.3,0.002]
[1754131791043,5.6697,3491.4,3491.3,0.002]
[1754131791228,10.0707,3491.4,3491.3,0.002]
[1754131791434,8.3467,3491.4,3491.3,0.002]
[1754131792628,5.3467,3491.4,3491.3,0.002]
[1754131794724,0.9457,3491.4,3491.3,0.002]
[1754131794925,5.3457,3491.4,3491.3,0.002]
[1754131796652,0.9457,3491.4,3491.3,0.002]
[1754131796979,4.398,3491.4,3491.3,0.002]
[1754131799343,4.8549,3491.4,3491.3,0.002]
[1754131800364,5.3065,3491.4,3491.3,0.002]
[1754131801065,5.8565,3491.4,3491.3,0.002]
[1754131801274,38.8565,3491.4,3491.3,0.002]
[1754131801429,10.5805,3491.4,3491.3,0.002]
[1754131801838,40.5805,3491.4,3491.3,0.002]
[1754131802039,10.5805,3491.4,3491.3,0.002]
[1754131802267,40.5805,3491.4,3491.3,0.002]
[1754131802467,8.8565,3491.4,3491.3,0.002]
[1754131802652,0.4516,3491.7,3491.3,0.002]
[1754131802834,4.8539,3491.6,3491.3,0.002]
[1754131803036,5.3055,3491.6,3491.3,0.002]
[1754131803340,30.0,3491.4,3491.3,0.002]
[1754131803532,0.9085,3491.5,3491.3,0.002]
[1754131803744,0.4569,3491.4,3491.3,0.002]
[1754131804142,0.9085,3491.4,3491.3,0.002]
[1754131805334,4.397,3491.6,3491.3,0.002]
[1754131805977,0.9085,3491.5,3491.3,0.002]
[1754131806633,0.4569,3491.4,3491.3,0.002]
[1754131806832,4.397,3491.6,3491.3,0.002]
[1754131807259,0.4569,3491.5,3491.3,0.002]
[1754131807469,4.397,3491.4,3491.3,0.002]
[1754131808442,34.8486,3491.4,3491.3,0.002]
[1754131808646,35.3055,3491.4,3491.3,0.002]
[1754131809783,5.3055,3491.4,3491.3,0.002]
[1754131810085,4.8539,3491.4,3491.3,0.002]
[1754131810271,5.3055,3491.4,3491.3,0.002]
[1754131811047,4.397,3491.4,3491.3,0.002]
[1754131811994,5.3035,3491.4,3491.3,0.002]
[1754131812493,4.8519,3491.4,3491.3,0.002]
[1754131812894,4.395,3491.4,3491.3,0.4735]
[1754131813044,3.0,3491.7,3491.3,0.4735]
[1754131813248,4.394,3491.6,3491.3,0.4735]
[1754131813950,4.394,3491.6,3491.3,0.002]
[1754131814153,3.0,3491.8,3491.4,0.4715]
[1754131814352,30.0,3491.6,3491.4,0.4715]
[1754131814890,33.0,3491.6,3491.5,0.4715]
[1754131815092,4.394,3491.6,3491.5,5.99488455]
[1754131815388,4.394,3491.6,3491.5,6.59457301]
[1754131815788,30.0,3492.3,3491.5,7.04127301]
[1754131815994,4.393,3492.2,3491.9,5.52338455]
[1754131816170,4.394,3492.1,3491.9,5.52338455]
[1754131816352,4.394,3492.1,3492.0,0.4715]
[1754131816552,30.0,3492.5,3492.0,0.4715]
[1754131816792,3.0,3492.2,3492.1,0.4715]
[1754131817179,0.9085,3492.6,3492.1,0.4715]
[1754131817387,30.0,3492.3,3492.1,0.4715]
[1754131817699,30.0,3492.6,3492.2,6.44158455]
[1754131817857,4.394,3492.5,3492.2,5.97008455]
[1754131818061,4.394,3492.5,3492.3,0.4715]
[1754131818300,4.394,3492.5,3492.4,0.4715]
[1754131818515,3.001,3492.9,3492.4,0.4715]
[1754131818516,0.001,3492.9,3492.4,1.1756073]
[1754131818654,0.001,3492.7,3492.4,1.1756073]
[1754131818859,4.393,3492.6,3492.5,0.4715]
[1754131819619,0.001,3492.7,3492.5,6.44158455]
[1754131819754,0.001,3492.7,3492.5,6.58478455]
[1754131819958,0.001,3492.7,3492.6,1.57667846]
[1754131820392,0.001,3492.7,3492.6,1.60531042]
[1754131821094,0.001,3492.9,3492.6,1.60531042]
[1754131821297,0.001,3492.9,3492.8,5.66658455]
[1754131821897,0.001,3493.1,3492.8,6.59988455]
[1754131822095,0.001,3493.1,3492.9,0.4808295]
[1754131822264,0.001,3493.1,3493.0,0.1432]
[1754131822486,0.001,3493.7,3493.0,0.5954]
[1754131822709,0.001,3493.7,3493.4,5.66658455]
[1754131822914,0.001,3493.7,3493.4,8.17732523]
[1754131823420,0.001,3493.7,3493.4,9.11062523]
[1754131827028,0.001,3493.7,3493.4,8.65842523]
[1754131827388,0.001,3493.7,3493.4,8.17732523]
[1754131827590,0.001,3493.7,3493.4,1.53831766]
[1754131828830,0.9107,3493.7,3493.4,1.05721766]
[1754131829197,0.001,3493.7,3493.4,9.57244289]
[1754131831223,0.001,3493.7,3493.4,0.1432]
[1754131831439,0.9107,3493.5,3493.1,0.1432]
[1754131831603,0.9097,3493.4,3493.1,0.1432]
[1754131832645,0.001,3493.5,3493.2,0.50972704]
[1754131832840,0.001,3493.5,3493.4,8.03412523]
[1754131833135,0.001,3493.5,3493.4,8.94518775]
[1754131833328,0.001,3493.5,3493.4,9.87848775]
[1754131833924,0.001,3493.5,3493.4,9.42628775]
[1754131834707,0.001,3493.5,3493.4,0.91106252]
[1754131834906,0.001,3493.5,3493.3,0.1432]
[1754131835105,0.4338,3493.5,3493.3,0.1432]
[1754131835302,0.9097,3493.4,3492.9,8.03412523]
[1754131835602,0.001,3493.5,3493.1,0.1432]
[1754131835603,0.9097,3493.3,3493.1,0.1432]
[1754131835815,0.9097,3493.3,3493.1,1.39993252]
[1754131836336,0.4328,3493.3,3493.1,1.39993252]
[1754131837045,0.9097,3493.3,3493.1,1.25673252]
[1754131838324,0.4328,3493.3,3493.1,1.25673252]
[1754131839735,0.4779,3493.5,3493.1,1.25673252]
[1754131839912,0.4779,3493.5,3493.2,2.00956864]
[1754131839913,0.001,3493.5,3493.2,2.00956864]
[1754131841209,0.001,3493.5,3493.3,0.4811]
[1754131841410,0.001,3493.5,3493.4,8.03412523]
[1754131841715,0.001,3493.5,3493.4,8.17732523]
[1754131842042,0.001,3493.5,3493.4,8.65842523]
[1754131842214,0.001,3493.5,3493.4,10.14701462]
[1754131842746,0.001,3493.5,3493.4,10.59921462]
[1754131843116,0.001,3493.5,3493.4,10.14701462]
[1754131844420,0.001,3493.5,3493.4,10.59921462]
[1754131844965,0.001,3493.5,3493.4,8.07867755]
[1754131845537,0.001,3493.5,3493.4,11.07867755]
[1754131847460,0.001,3493.5,3493.4,10.62647755]
[1754131848858,0.001,3493.5,3493.4,11.07867755]
[1754131850336,0.001,3493.9,3493.8,5.51358816]
[1754131850661,0.001,3493.9,3493.8,10.45394698]
[1754131850862,0.001,3493.9,3493.8,11.53044698]
[1754131851663,0.001,3493.9,3493.8,11.07824698]
[1754131853532,0.001,3493.9,3493.8,11.54134698]
[1754131853934,0.001,3494.1,3493.8,11.54134698]
[1754131854135,0.001,3494.1,3493.9,2.11325601]
[1754131854335,0.001,3494.1,3494.0,4.5322]
[1754131854536,0.001,3494.1,3494.0,4.9996]
[1754131855178,0.001,3494.1,3494.0,5.4627]
[1754131855870,0.001,3494.1,3494.0,4.9996]
[1754131856203,1.00756432,3495.6,3494.1,3.0]
[1754131856472,1.00756432,3495.6,3494.0,9.73087817]
[1754131856473,0.9053,3495.4,3495.3,5.51358816]
[1754131857883,0.9053,3495.4,3495.1,5.65678816]
[1754131858087,0.9053,3495.3,3495.1,0.1432]
[1754131858375,0.57626432,3495.6,3494.6,10.04478816]
[1754131858376,0.9053,3495.2,3494.6,10.04478816]
[1754131858690,0.9053,3495.1,3494.9,5.51358816]
[1754131858840,0.57626432,3495.6,3494.6,5.39247882]
[1754131858841,0.9053,3495.0,3494.8,0.1432]
[1754131859045,0.9053,3494.9,3494.8,0.1432]
[1754131859350,0.9053,3494.9,3494.4,4.39]
[1754131859544,0.9053,3494.8,3494.5,0.1432]
[1754131859739,0.57626432,3495.6,3494.5,0.1432]
[1754131859987,0.9053,3494.7,3494.5,0.1432]
[1754131860192,0.57626432,3495.6,3494.5,1.14787882]
[1754131860396,0.9053,3494.6,3494.4,4.39]
[1754131860585,0.9053,3494.5,3494.4,5.51358816]
[1754131861310,30.0,3495.5,3494.4,5.51358816]
[1754131861625,30.0,3495.3,3494.4,5.51358816]
[1754131861821,30.0,3495.3,3494.2,0.1432]
[1754131861974,3.55,3495.0,3493.5,9.90658816]
[1754131862173,3.55,3494.8,3493.8,5.51358816]
[1754131862399,4.393,3495.3,3494.1,5.51358816]
[1754131862400,0.9053,3494.7,3494.1,5.51358816]
[1754131862574,0.9053,3494.6,3494.1,5.51358816]
[1754131862768,3.0,3494.9,3494.1,5.51358816]
[1754131862971,0.9053,3494.5,3494.1,5.51358816]
[1754131863189,0.9053,3494.4,3494.1,6.2884665]
[1754131863504,0.4313,3494.4,3494.2,0.02861885]
[1754131863725,0.474,3494.6,3494.2,0.02861885]
[1754131863890,0.474,3494.6,3494.5,5.51358816]
[1754131864216,9.119,3495.2,3494.5,5.51358816]
[1754131864618,0.9053,3495.1,3494.5,5.51358816]
[1754131864787,0.9053,3495.0,3494.5,5.51358816]
[1754131864969,0.4313,3494.9,3494.5,5.51358816]
[1754131865184,0.9053,3494.8,3494.5,5.51358816]
[1754131865381,0.9053,3494.7,3494.1,0.1432]
[1754131865595,0.9053,3494.7,3494.0,4.395]
[1754131865596,0.9053,3494.6,3494.0,0.1432]
[1754131865773,0.9053,3494.5,3493.9,0.1432]
[1754131865974,0.9053,3494.4,3493.9,1.14827882]
[1754131866174,0.9053,3494.3,3493.9,1.14827882]
[1754131866413,0.9053,3494.2,3493.9,1.14827882]
[1754131866720,0.9053,3494.1,3494.0,5.51358816]
[1754131867505,0.9053,3494.1,3493.7,5.65678816]
[1754131867708,0.9053,3494.0,3493.8,1.00497882]
[1754131867872,0.55,3494.8,3493.8,1.00497882]
[1754131868071,30.0,3494.7,3494.1,0.002]
[1754131868274,0.001,3494.7,3494.1,0.002]
[1754131868713,0.9053,3494.6,3494.1,0.002]
[1754131868975,0.9053,3494.5,3494.1,0.002]
[1754131869176,0.9053,3494.4,3494.1,0.002]
[1754131869486,0.9053,3494.3,3494.1,0.002]
[1754131869682,0.001,3494.7,3494.1,0.002]
[1754131869873,0.551,3494.7,3494.1,0.002]
[1754131870076,0.9053,3494.6,3494.1,0.002]
[1754131870511,0.551,3494.7,3494.1,0.002]
[1754131870678,0.9053,3494.5,3494.1,0.002]
[1754131871315,0.9053,3494.4,3494.1,0.002]
[1754131871702,1.724,3494.6,3494.1,0.002]
[1754131871899,0.9053,3494.3,3494.1,0.002]
[1754131872415,0.9053,3494.2,3494.1,0.002]
[1754131877708,0.4313,3494.2,3494.1,0.002]
[1754131877912,0.9053,3494.2,3494.1,0.002]
[1754131879729,33.1793,3494.2,3494.1,0.002]
[1754131881131,37.5683,3494.2,3494.1,0.002]
[1754131881635,6.113,3494.2,3494.1,0.002]
[1754131881818,6.113,3494.2,3494.1,0.4687]
[1754131882136,4.389,3494.2,3494.1,0.4687]
[1754131882842,4.389,3494.2,3494.1,0.002]
[1754131883040,4.8633,3494.2,3494.1,0.002]
[1754131884302,5.3223,3494.2,3494.1,0.002]
[1754131885839,4.389,3494.2,3494.1,0.002]
[1754131886219,4.389,3494.2,3494.1,0.4687]
[1754131886743,1.724,3494.4,3494.1,0.4687]
[1754131886914,4.389,3494.3,3494.1,0.4687]
[1754131887548,4.389,3494.3,3494.1,0.002]
[1754131888647,4.389,3494.3,3494.1,0.4687]
[1754131890345,4.389,3494.3,3494.1,0.002]
[1754131890509,4.389,3494.3,3494.2,0.4667]
[1754131891537,6.113,3494.3,3494.2,0.4667]
[1754131891747,4.389,3494.3,3494.2,0.4667]
[1754131896033,4.389,3494.3,3494.2,0.9116]
[1754131896919,4.389,3494.3,3494.1,0.1452]
[1754131897125,4.389,3494.3,3494.1,1.00988449]
[1754131897369,4.389,3494.3,3494.1,1.33338449]
[1754131897593,4.389,3494.3,3494.1,0.86668449]
[1754131897875,4.389,3494.3,3494.2,0.4667]
[1754131899275,4.389,3494.3,3494.2,0.9116]
[1754131899455,4.389,3494.3,3494.2,1.23262845]
[1754131901172,4.39,3494.6,3494.2,1.23262845]
[1754131901382,4.39,3494.6,3494.2,0.32102845]
[1754131901678,4.39,3494.6,3494.1,0.86668449]
[1754131901679,0.9333,3494.5,3494.1,0.002]
[1754131902043,4.39,3494.6,3494.1,0.002]
[1754131902240,0.9333,3494.4,3494.1,0.002]
[1754131902754,0.9333,3494.3,3494.1,0.002]
[1754131903150,0.9333,3494.2,3494.1,0.002]
[1754131904759,0.4743,3494.2,3494.1,0.002]
[1754131905054,0.9333,3494.2,3494.1,0.002]
[1754131907479,0.4743,3494.2,3494.1,0.002]
[1754131908176,0.9333,3494.2,3494.1,0.002]
[1754131908582,3.2073,3494.2,3494.1,0.002]
[1754131908810,33.2073,3494.2,3494.1,0.002]
[1754131909143,37.5953,3494.2,3494.1,0.002]
[1754131909681,7.5953,3494.2,3494.1,0.002]
[1754131910264,4.388,3494.2,3494.1,0.002]
[1754131910604,4.388,3494.2,3494.1,1.27239449]
[1754131910902,4.388,3494.2,3494.1,6.78517184]
[1754131912352,0.001,3494.6,3494.1,7.22587184]
[1754131912549,4.389,3494.6,3494.5,5.51277735]
[1754131912748,4.389,3494.6,3494.2,0.4407]
[1754131912990,4.389,3494.6,3494.5,0.4844]
[1754131914594,4.8479,3494.6,3494.1,0.6296]
[1754131914779,4.8479,3494.6,3494.1,0.1452]
[1754131915087,4.8479,3494.6,3494.2,0.4844]
[1754131915290,4.8479,3494.6,3494.1,0.1452]
[1754131915291,0.9217,3494.5,3494.1,0.1452]
[1754131915472,4.389,3494.6,3494.2,0.4844]
[1754131916201,4.389,3494.6,3494.1,0.1452]
[1754131916355,4.389,3494.6,3494.3,0.4844]
[1754131916691,4.389,3494.6,3494.4,0.4844]
[1754131917093,4.389,3494.6,3494.5,0.4844]
[1754131918194,0.001,3494.6,3494.5,0.9251]
[1754131918362,0.001,3494.6,3494.5,1.0683]
[1754131920261,0.001,3494.6,3494.5,0.6276]
[1754131928111,0.001,3494.6,3494.5,0.1432]
[1754131928810,0.001,3494.6,3494.5,0.6276]
[1754131929414,0.001,3494.6,3494.5,1.0683]
[1754131930707,0.001,3494.6,3494.5,0.6276]
[1754131931074,0.4599,3494.6,3494.5,0.1432]
[1754131931276,0.001,3494.6,3494.5,0.6276]
[1754131931711,0.001,3494.6,3494.5,1.0683]
[1754131932015,0.001,3494.6,3494.5,0.6276]
[1754131932815,0.001,3494.6,3494.5,5.65381088]
[1754131933034,0.001,3494.6,3494.5,6.70359197]
[1754131934318,0.001,3494.6,3494.5,7.14429197]
[1754131937416,0.001,3494.6,3494.5,11.53029197]
[1754131937613,0.001,3494.6,3494.5,6.70359197]
[1754131937815,0.4599,3494.6,3494.5,5.65381088]
[1754131938140,0.9227,3494.6,3494.1,0.002]
[1754131938526,0.9217,3494.5,3494.1,5.51261088]
[1754131938728,0.9217,3494.4,3494.1,5.51261088]
[1754131939041,0.9217,3494.3,3494.1,0.002]
[1754131939206,0.9217,3494.2,3494.1,0.002]
[1754131939403,0.9217,3494.2,3494.1,5.51261088]
[1754131940938,0.9217,3494.2,3494.1,0.002]
[1754131941141,0.9217,3494.5,3494.1,0.002]
[1754131941354,0.9217,3494.5,3494.1,0.4864]
[1754131941730,0.001,3494.6,3494.1,0.002]
[1754131942049,0.9314,3494.5,3494.1,0.6142]
[1754131942246,0.4637,3494.5,3494.1,0.6142]
[1754131942433,0.9314,3494.4,3494.1,0.1452]
[1754131942636,0.4677,3494.3,3494.1,0.1452]
[1754131942843,0.9314,3494.3,3494.1,0.002]
[1754131943350,0.9314,3494.2,3494.1,0.002]
[1754131944740,0.4687,3494.6,3494.1,0.471]
[1754131944941,0.9324,3494.6,3494.1,0.471]
[1754131945132,0.4677,3494.5,3494.1,0.471]
[1754131945329,0.4677,3494.5,3494.2,8.64648012]
[1754131945721,0.001,3494.6,3494.3,0.469]
[1754131945924,0.001,3494.6,3494.4,0.469]
[1754131946537,0.001,3494.6,3494.5,0.469]
[1754131946723,0.001,3494.6,3494.2,8.17748012]
[1754131946927,0.9314,3494.5,3494.3,0.84334517]
[1754131947271,0.4677,3494.4,3494.3,0.98654517]
[1754131947424,0.4677,3494.4,3494.3,0.1432]
[1754131947621,0.9314,3494.4,3494.3,0.1432]
[1754131948255,0.9314,3494.4,3494.1,0.1452]
[1754131948461,0.4677,3494.3,3494.1,0.1452]
[1754131948845,0.9314,3494.3,3494.1,0.1452]
[1754131949287,0.4677,3494.3,3494.1,0.1452]
[1754131949668,0.001,3494.6,3494.1,0.6142]
[1754131949961,0.001,3494.6,3494.4,0.1432]
[1754131950546,0.4677,3494.5,3494.4,0.1432]
[1754131950766,0.9314,3494.5,3494.4,0.1432]
[1754131951764,0.4677,3494.5,3494.4,0.1432]
[1754131952360,0.001,3494.6,3494.4,0.1432]
[1754131952728,0.001,3494.6,3494.4,0.6122]
[1754131952929,0.001,3494.6,3494.2,8.50328012]
[1754131953161,0.001,3494.6,3494.2,9.54362813]
[1754131953660,0.001,3494.6,3494.2,9.07462813]
[1754131953911,0.001,3494.6,3494.3,0.469]
[1754131954235,0.001,3494.6,3494.4,0.469]
[1754131954432,0.001,3494.6,3494.4,0.1432]
[1754131954767,0.001,3494.6,3494.4,0.6122]
[1754131956466,0.001,3494.6,3494.5,1.42336281]
[1754131956676,0.001,3494.6,3494.5,1.9181792]
[1754131956968,0.001,3494.6,3494.5,1.88956281]
[1754131961087,0.001,3494.6,3494.5,1.42336281]
[1754131961767,0.001,3494.6,3494.5,1.88956281]
[1754131962083,0.001,3494.7,3494.5,1.88956281]
[1754131962290,0.001,3495.0,3494.6,1.57707628]
[1754131962475,0.57626432,3495.6,3495.5,8.03428012]
[1754131962675,0.57626432,3495.6,3495.5,8.64648012]
[1754131962994,0.57626432,3495.6,3495.5,6.12017172]
[1754131963664,0.57626432,3495.6,3495.5,5.65117172]
[1754131963864,0.57626432,3495.6,3495.5,6.70168889]
[1754131965808,1.50766432,3495.6,3495.2,5.50797172]
[1754131966110,0.9314,3495.5,3495.2,0.1432]
[1754131966314,0.9314,3495.5,3495.0,4.385]
[1754131966614,0.9314,3495.4,3494.9,5.65117172]
[1754131966766,0.9314,3495.3,3494.9,5.65117172]
[1754131966966,0.9314,3495.2,3494.9,5.65117172]
[1754131967305,0.9314,3495.1,3494.9,5.65117172]
[1754131967466,0.9314,3495.0,3494.9,5.65117172]
[1754131967998,0.9314,3495.0,3494.7,4.385]
[1754131968168,0.9314,3494.9,3494.6,10.03617172]
[1754131969004,0.4677,3494.8,3494.6,5.65117172]
[1754131969168,0.4677,3494.8,3494.6,10.67031738]
[1754131969367,0.4677,3495.1,3494.6,11.13931738]
[1754131969564,0.4677,3495.1,3495.0,5.50797172]
[1754131969771,0.9314,3495.1,3495.0,5.50797172]
[1754131972064,0.9314,3495.1,3494.7,5.50797172]
[1754131972298,0.9058,3495.0,3494.4,7.5282]
[1754131972504,1.721,3495.5,3494.4,7.5282]
[1754131972706,0.9058,3494.9,3494.4,7.5282]
[1754131972916,1.721,3495.5,3494.4,0.1432]
[1754131973115,0.9058,3494.8,3494.4,0.1432]
[1754131973312,0.9058,3494.8,3494.6,5.50797172]
[1754131973699,0.4547,3494.8,3494.6,5.50797172]
[1754131974917,4.385,3495.5,3494.6,5.50797172]
[1754131975216,0.9058,3495.4,3494.9,5.50797172]
[1754131975381,0.9058,3495.3,3494.9,5.50797172]
[1754131975974,0.9058,3495.2,3494.9,5.50797172]
[1754131976200,0.4547,3495.2,3494.9,5.50797172]
[1754131976514,0.9058,3495.1,3494.9,5.50797172]
[1754131976815,4.385,3495.5,3494.9,5.50797172]
[1754131977015,0.9058,3495.0,3494.9,5.50797172]
[1754131977516,0.4547,3495.0,3494.9,5.50797172]
[1754131978077,0.9058,3495.0,3494.9,5.50797172]
[1754131978512,0.4547,3495.0,3494.9,5.50797172]
[1754131979620,0.001,3495.1,3494.9,6.51530055]
[1754131979824,0.001,3495.1,3494.9,6.17670055]
[1754131980110,0.001,3495.1,3495.0,0.4818]
[1754131980328,0.001,3495.1,3494.9,5.65117172]
[1754131980490,0.001,3495.1,3494.9,6.29119486]
[1754131980888,0.001,3495.1,3494.9,6.77299486]
[1754131981633,0.001,3495.1,3495.0,0.4818]
[1754131982401,0.001,3495.1,3495.0,1.0767]
[1754131982928,0.001,3495.1,3495.0,1.1053123]
[1754131983128,0.001,3495.1,3495.0,6.62443072]
[1754131983628,0.001,3495.1,3495.0,9.62443072]
[1754131991737,0.001,3495.1,3495.0,8.69093072]
[1754131991900,0.001,3495.1,3495.0,9.17273072]
[1754131992100,0.001,3495.1,3495.0,8.68993072]
[1754131992296,0.9068,3495.1,3495.0,8.68993072]
[1754131992498,0.001,3495.1,3495.0,8.68993072]
[1754131992719,0.001,3495.1,3495.0,9.62343072]
[1754131993415,0.57626432,3495.6,3495.5,5.50797172]
[1754131993614,0.57626432,3495.6,3495.5,5.65117172]
[1754131993839,0.57626432,3495.6,3495.5,6.65458889]
[1754131994006,0.57626432,3495.6,3495.5,7.13638889]
[1754131994207,0.57626432,3495.6,3495.5,6.65458889]
[1754131994605,0.4547,3496.9,3495.5,7.44488889]
[1754131994938,30.0,3497.0,3496.7,5.50797172]
[1754131995347,0.9058,3496.9,3496.7,5.50797172]
[1754131995651,0.9058,3496.8,3496.7,5.50797172]
[1754131996345,0.9058,3496.8,3495.5,1.00341717]
[1754131996346,0.9058,3496.8,3496.4,5.50797172]
[1754131996552,0.9058,3496.7,3496.4,5.50797172]
[1754131996760,0.9058,3496.6,3496.4,5.50797172]
[1754131997057,0.9058,3496.5,3496.4,5.50797172]
[1754131998835,0.4547,3496.5,3496.4,5.50797172]
[1754131999551,0.9058,3496.7,3496.4,6.51138889]
[1754131999755,0.4511,3496.7,3496.4,6.51138889]
[1754132000046,0.9058,3496.6,3496.4,5.50797172]
[1754132000345,1.721,3497.1,3496.1,5.50797172]